fUSD/lending_fUSD_20240511
["ID","MTS","AMOUNT","RATE_DAILY","PERIOD"]
[326822018,1715446239360,-917.427464,0.00012855,2]
[326822019,1715446239370,-188.239866,0.00012855,2]
[326822020,1715446239380,-151.0,0.00012855,2]
[326822021,1715446239389,-151.0,0.00012855,2]
[326822022,1715446239398,-151.0,0.00012855,2]
[326822023,1715446239407,-641.508394,0.00012855,2]
[326822024,1715446239416,-641.508394,0.00012855,2]
[326822025,1715446239426,-749.713689,0.00012855,2]
[326822026,1715446239435,-151.0,0.00012855,2]
[326822027,1715446239444,-749.713689,0.00012855,2]
[326822028,1715446239453,-151.0,0.00012855,2]
[326822029,1715446239463,-3420.104958,0.00012855,2]
[326822030,1715446239472,-3420.104958,0.00012855,2]
[326822031,1715446239481,-151.0,0.00012855,2]
[326822032,1715446239490,-306.46,0.00012859,2]
[326822033,1715446239500,-1669.93615023,0.00012864,2]
[326822034,1715446239510,-183.05942095,0.0001287,2]
[326822035,1715446239519,-200.0,0.00012871,2]
[326822036,1715446239528,-1000.0,0.00012871,2]
[326822037,1715446239538,-500.0,0.00012871,2]
[326822038,1715446239547,-1669.93615023,0.00012873,2]
[326822039,1715446239556,-121419.47054269,0.0001288,2]
[326822040,1715446239568,-193.89257,0.0001288,2]
[326822041,1715446239577,-151.0,0.0001288,2]
[326822042,1715446239585,-151.0,0.0001288,2]
[326822043,1715446239595,-151.0,0.0001288,2]
[326822044,1715446239604,-151.0,0.0001288,2]
[326822045,1715446239613,-917.427464,0.0001288,2]
[326822046,1715446239622,-917.427464,0.0001288,2]
[326822047,1715446239631,-272.55595,0.0001288,2]
[326822048,1715446239640,-151.0,0.0001288,2]
[326822049,1715446239649,-641.508394,0.0001288,2]
[326822050,1715446239659,-641.508394,0.0001288,2]
[326822051,1715446239669,-749.713689,0.0001288,2]
[326822052,1715446239678,-174.543055,0.0001288,2]
[326822053,1715446239687,-749.713689,0.0001288,2]
[326822054,1715446239697,-151.0,0.0001288,2]
[326822055,1715446239706,-3420.104958,0.0001288,2]
[326822056,1715446239716,-3420.104958,0.0001288,2]
[326822057,1715446239725,-1669.93615023,0.00012882,2]
[326822058,1715446239735,-4508.63610945,0.0001289,2]
[326822059,1715446239745,-1669.93615023,0.00012891,2]
[326822060,1715446239754,-427.98536419,0.00012892,2]
[326822061,1715446239764,-500.0,0.00012895,2]
[326822062,1715446239774,-200.21998404,0.00012898,2]
[326822063,1715446239784,-155.0,0.00012898,2]
[326822064,1715446239794,-155.0,0.00012898,2]
[326822065,1715446239803,-155.0,0.00012898,2]
[326822066,1715446239816,-155.06045852,0.00012898,2]
[326822067,1715446239826,-155.0,0.00012898,2]
[326822068,1715446239836,-162.70674486,0.00012898,2]
[326822069,1715446239846,-393.48852374,0.00012898,2]
[326822070,1715446239855,-155.0,0.00012898,2]
[326822071,1715446239865,-155.0,0.00012898,2]
[326822072,1715446239875,-574.34871661,0.00012898,2]
[326822073,1715446239885,-199.32364623,0.00012898,2]
[326822074,1715446239894,-155.60986367,0.00012898,2]
[326822075,1715446239904,-157.80998137,0.00012898,2]
[326822076,1715446239913,-155.31169365,0.00012898,2]
[326822077,1715446239923,-1270.74820286,0.00012898,2]
[326822078,1715446239932,-305.72421467,0.00012898,2]
[326822079,1715446239941,-389.68621106,0.00012898,2]
[326822080,1715446239951,-155.0,0.00012898,2]
[326822081,1715446239960,-155.96026536,0.00012898,2]
[326822082,1715446239970,-164.9837825,0.00012898,2]
[326822083,1715446239979,-3778.05622727,0.00012898,2]
[326822084,1715446239988,-360.01550888,0.00012898,2]
[326822085,1715446239998,-515.6795376,0.00012898,2]
[326822086,1715446240014,-236.94401654,0.00012898,2]
[326822087,1715446240024,-467.19478886,0.00012898,2]
[326822088,1715446240033,-311.1631246,0.00012898,2]
[326822089,1715446240043,-5266.11358225,0.00012898,2]
[326822090,1715446240051,-377.35579036,0.00012898,2]
[326822091,1715446240062,-174.73461069,0.00012898,2]
[326822092,1715446240071,-2220.24387708,0.00012898,2]
[326822093,1715446240080,-409.51370629,0.00012898,2]
[326822094,1715446240089,-155.0,0.00012898,2]
[326822095,1715446240098,-788.18220101,0.00012898,2]
[326822096,1715446240108,-324.02101171,0.00012898,2]
[326822098,1715446240116,-3279.04154518,0.00012898,2]
[326822099,1715446240126,-297.35349394,0.00012899,2]
[326822100,1715446240134,-160.99273667,0.00012899,2]
[326822103,1715446240144,-252.10631007,0.00012899,2]
[326822105,1715446240153,-98948.21081493,0.000129,2]
[326822106,1715446240174,-783.9875,0.000129,2]
[326822108,1715446241756,-658.51601687,0.000129,2]
[326822109,1715446241852,-583.84370256,0.000129,2]
[326822110,1715446242322,-627.19,0.000129,2]
[326822111,1715446242335,-631.17512,0.000129,2]
[326822112,1715446242347,-299.8197336,0.000129,2]
[326822113,1715446242359,-2930.325011,0.000129,2]
[326822114,1715446242605,-340.0090999,0.000129,2]
[326822115,1715446242616,-953.445,0.000129,2]
[326822116,1715446242628,-967.557304,0.000129,2]
[326822117,1715446242639,-359.38098,0.000129,2]
[326822132,1715446243465,-82594.68848439,0.000129,2]
[326822168,1715446265686,155.0,0.00012898,120]
[326822169,1715446271673,500.0,0.000117,2]
[326822170,1715446291556,39592.45,0.000117,2]
[326822171,1715446291581,60407.55,0.000117,2]
[326822172,1715446303644,1000.0,0.000117,2]
[326822173,1715446369875,750.52330383,0.00011608,2]
[326822174,1715446385423,157.94259281,0.000117,2]
[326822175,1715446394966,500.0,0.000117,2]
[326822176,1715446424955,9678.03,0.00011698,2]
[326822177,1715446435826,572.90279862,0.00011608,2]
[326822178,1715446441403,173.32783501,0.000117,2]
[326822179,1715446455233,1060.48700061,0.000117,2]
[326822180,1715446456595,181.46,9.356e-05,2]
[326822181,1715446507367,2416.469174,0.00011687,2]
[326822182,1715446598149,190.55,0.00011592,2]
[326822183,1715446598489,272.61333472,0.00011615,2]
[326822184,1715446625618,1481.62,0.0001164,2]
[326822185,1715446658584,164.98,0.00011569,2]
[326822186,1715446665315,525.18009004,0.00011568,2]
[326822187,1715446702877,157.05,0.00011548,2]
[326822188,1715446703119,157.05,0.00011606,2]
[326822190,1715446723668,155.0,0.00011702,2]
[326822194,1715446726334,1296.68818184,0.00011702,2]
[326822195,1715446728054,1052.52383292,0.00011702,2]
[326822196,1715446729864,2360.27912492,0.00011702,2]
[326822197,1715446733771,401.52503729,0.00011702,2]
[326822198,1715446737126,157.58689611,0.00011702,2]
[326822199,1715446748746,521.56471164,0.00011702,2]
[326822200,1715446792938,250.0,0.00011696,2]
[326822201,1715446810884,1250.0,0.00011,2]
[326822202,1715446943186,380.36,0.00011617,2]
[326822203,1715447053532,250.0,0.00011597,2]
[326822204,1715447063652,183.87,0.00011599,2]
[326822205,1715447064175,405.58021719,0.00011702,2]
[326822206,1715447143217,987.41,0.00011624,2]
[326822207,1715447173309,170.0,0.00011644,2]
[326822208,1715447211773,6917.16,0.00011652,2]
[326822209,1715447268054,200.0,0.00011666,2]
[326822210,1715447273497,250.0,0.00011689,2]
[326822211,1715447285658,23900.0,0.00011685,2]
[326822238,1715447432178,-157.58689611,0.00011711,2]
[326822239,1715447432188,-157.98514558,0.00011736,2]
[326822240,1715447432197,-299.99,0.00011737,2]
[326822241,1715447432207,-695.71,0.00011746,2]
[326822242,1715447432216,-150.0,0.00011747,2]
[326822243,1715447432225,-155.62,0.00011799,2]
[326822244,1715447432235,-499.99,0.00011847,2]
[326822245,1715447432243,-150.0,0.00011847,2]
[326822246,1715447432253,-150.99,0.00011848,2]
[326822247,1715447432262,-46.89590608,0.00011933,2]
[326822248,1715447432289,-146.29409392,0.00011933,2]
[326822249,1715447432298,-409.86265904,0.00012081,2]
[326822250,1715447432307,-458.87,0.00012082,2]
[326822251,1715447432316,-600.0,0.0001224,2]
[326822252,1715447432325,-97.54450501,0.00012251,2]
[326822253,1715447432336,-680.24823166,0.00012251,2]
[326822254,1715447432346,-954.84797262,0.00012253,2]
[326822255,1715447432355,-1296.07777176,0.00012253,2]
[326822256,1715447432364,-155.62,0.00012414,2]
[326822257,1715447432378,-155.0,0.000125,2]
[326822258,1715447432387,-1424.80602396,0.0001258,2]
[326822259,1715447432407,-17135.19397604,0.0001258,2]
[326822260,1715447432417,-1000.0,0.000126,2]
[326822261,1715447432426,-152.06,0.00012603,2]
[326822262,1715447432435,-639.56516513,0.00012695,2]
[326822263,1715447432445,-600.0,0.0001275,2]
[326822264,1715447432454,-2157.0,0.00012754,2]
[326822265,1715447432464,-972.0,0.00012754,2]
[326822266,1715447432474,-1260.514,0.00012754,2]
[326822267,1715447432483,-1226.0,0.00012754,2]
[326822268,1715447432493,-1789.0,0.00012754,2]
[326822269,1715447432502,-649.731,0.00012754,2]
[326822270,1715447432511,-189.033,0.00012754,2]
[326822271,1715447432520,-421.0,0.00012754,2]
[326822272,1715447432529,-612.0,0.00012754,2]
[326822273,1715447432538,-809.0,0.00012754,2]
[326822274,1715447432548,-438.0,0.00012754,2]
[326822275,1715447432557,-151.677,0.00012754,2]
[326822276,1715447432566,-1653.07,0.00012754,2]
[326822277,1715447432575,-2412.0,0.00012754,2]
[326822278,1715447432583,-151.013,0.00012754,2]
[326822279,1715447432592,-3156.0,0.00012754,2]
[326822280,1715447432603,-1144.459,0.00012754,2]
[326822281,1715447432614,-216.0,0.00012754,2]
[326822282,1715447432628,-444.0,0.00012754,2]
[326822283,1715447432637,-698.73671,0.0001277,2]
[326822284,1715447432646,-1181.1584,0.000128,2]
[326822285,1715447432655,-63561.1043,0.000128,2]
[326822286,1715447432668,-1947.94820855,0.000128,2]
[326822287,1715447432677,-365.19461363,0.000128,2]
[326822288,1715447432686,-178.02079672,0.00012819,2]
[326822289,1715447432695,-171.03,0.00012822,2]
[326822290,1715447432704,-5910.0,0.00012824,2]
[326822291,1715447432713,-288.0,0.00012824,2]
[326822292,1715447432722,-3023.213,0.00012824,2]
[326822293,1715447432732,-37824.0,0.00012824,2]
[326822294,1715447432741,-200.0,0.00012846,2]
[326822295,1715447432751,-191.09971666,0.0001285,2]
[326822296,1715447432760,-216.59401732,0.0001285,2]
[326822297,1715447432769,-178.99128208,0.0001285,2]
[326822298,1715447432778,-196.71913629,0.0001285,2]
[326822299,1715447432787,-174.76024922,0.0001285,2]
[326822300,1715447432797,-216.59401728,0.00012855,2]
[326822301,1715447432806,-216.59401728,0.00012859,2]
[326822302,1715447432815,-216.59401728,0.00012864,2]
[326822303,1715447432824,-216.59401728,0.00012868,2]
[326822304,1715447432834,-200.0,0.00012871,2]
[326822305,1715447432843,-1000.0,0.00012871,2]
[326822306,1715447432853,-500.0,0.00012871,2]
[326822307,1715447432863,-216.59401728,0.00012873,2]
[326822308,1715447432874,-216.59401728,0.00012877,2]
[326822309,1715447432883,-216.59401728,0.00012882,2]
[326822310,1715447432893,-216.59401728,0.00012886,2]
[326822311,1715447432902,-22623.88577628,0.0001289,2]
[326822312,1715447432911,-183.05942095,0.0001289,2]
[326822313,1715447432920,-216.59401728,0.00012891,2]
[326822314,1715447432930,-7308.2439829,0.00012892,2]
[326822315,1715447432939,-216.59401728,0.00012895,2]
[326822316,1715447432949,-5113.27167962,0.00012896,2]
[326822317,1715447432958,-363.80399755,0.00012898,2]
[326822318,1715447432967,-684.85937217,0.00012898,2]
[326822319,1715447432976,-3031.47994571,0.00012898,2]
[326822320,1715447432985,-4737.626702,0.00012898,2]
[326822321,1715447432996,-293.45257378,0.00012898,2]
[326822322,1715447433005,-305.64014606,0.00012898,2]
[326822323,1715447433015,-2217.73701039,0.00012898,2]
[326822324,1715447433025,-1340.43061439,0.00012898,2]
[326822325,1715447433034,-326.51563459,0.00012898,2]
[326822326,1715447433044,-252.10631007,0.00012898,2]
[326822327,1715447433054,-155.11439066,0.00012898,2]
[326822328,1715447433063,-155.08318181,0.00012898,2]
[326822329,1715447433073,-155.22385296,0.00012898,2]
[326822330,1715447433083,-177.68872852,0.00012898,2]
[326822331,1715447433092,-155.0,0.00012898,2]
[326822332,1715447433102,-155.21196866,0.00012898,2]
[326822333,1715447433111,-3280.62102371,0.00012898,2]
[326822334,1715447433122,-1623.45850459,0.00012898,2]
[326822335,1715447433132,-3086.33164394,0.00012898,2]
[326822336,1715447433141,-788.48029707,0.00012898,2]
[326822337,1715447433150,-200.69504957,0.00012898,2]
[326822338,1715447433160,-343.99922863,0.00012898,2]
[326822339,1715447433170,-377.57527955,0.00012898,2]
[326822340,1715447433179,-160.0,0.00012898,2]
[326822341,1715447433189,-155.0,0.00012898,2]
[326822342,1715447433199,-167.65434555,0.00012898,2]
[326822343,1715447433208,-155.0,0.00012898,2]
[326822344,1715447433218,-370.68594693,0.00012898,2]
[326822345,1715447433228,-4272.16693787,0.00012898,2]
[326822346,1715447433238,-155.0,0.00012898,2]
[326822347,1715447433247,-208.30272338,0.00012898,2]
[326822348,1715447433257,-2364.25603616,0.00012898,2]
[326822349,1715447433266,-155.10059743,0.00012898,2]
[326822350,1715447433275,-2183.75134658,0.00012898,2]
[326822351,1715447433284,-326.36335566,0.00012898,2]
[326822352,1715447433294,-2101.80773139,0.00012898,2]
[326822353,1715447433304,-535.07006962,0.00012898,2]
[326822354,1715447433313,-156.95518331,0.00012898,2]
[326822355,1715447433323,-1052.10948772,0.00012898,2]
[326822356,1715447433332,-969.12753463,0.00012898,2]
[326822357,1715447433342,-520.96383106,0.00012898,2]
[326822358,1715447433352,-297.23683483,0.00012898,2]
[326822359,1715447433362,-365.88429841,0.00012898,2]
[326822360,1715447433375,-207.10762739,0.00012899,2]
[326822361,1715447433384,-186.12897839,0.00012899,2]
[326822362,1715447433394,-155.41401368,0.00012899,2]
[326822363,1715447433404,-2325.20256337,0.00012899,2]
[326822364,1715447433413,-1018.6424211,0.00012899,2]
[326822365,1715447433423,-563373.4165792,0.000129,2]
[326822366,1715447433433,-191.09971665,0.000129,2]
[326822367,1715447433442,-541.85956829,0.000129,2]
[326822368,1715447433453,-541.85956822,0.000129,2]
[326822369,1715447433462,-541.85956822,0.000129,2]
[326822370,1715447433471,-541.85956822,0.000129,2]
[326822371,1715447433480,-541.85956822,0.000129,2]
[326822372,1715447433490,-541.85956822,0.000129,2]
[326822373,1715447433499,-541.85956822,0.000129,2]
[326822374,1715447433508,-541.85956822,0.000129,2]
[326822375,1715447433518,-10000.0,0.000129,2]
[326822376,1715447433528,-178.99128208,0.000129,2]
[326822377,1715447433538,-216.59401728,0.000129,2]
[326822378,1715447433547,-447.0,0.000129,2]
[326822379,1715447433557,-1764.75832,0.000129,2]
[326822380,1715447433566,-353.0,0.000129,2]
[326822381,1715447433576,-150.05995938,0.000129,2]
[326822382,1715447433585,-1000.0,0.000129,2]
[326822383,1715447433594,-5702.81482376,0.000129,2]
[326822384,1715447433604,-196.04475242,0.000129,2]
[326822385,1715447433613,-1409.72503176,0.000129,2]
[326822386,1715447433628,-365.19461363,0.000129,2]
[326822387,1715447433636,-151.0,0.00012903,2]
[326822388,1715447433646,-151.0,0.00012903,2]
[326822389,1715447433656,-599.770951,0.00012903,2]
[326822390,1715447433664,-599.770951,0.00012903,2]
[326822391,1715447433674,-151.0,0.00012903,2]
[326822392,1715447433683,-513.206716,0.00012903,2]
[326822393,1715447433691,-513.206716,0.00012903,2]
[326822394,1715447433701,-151.0,0.00012903,2]
[326822395,1715447433710,-2736.083966,0.00012903,2]
[326822396,1715447433719,-2736.083966,0.00012903,2]
[326822397,1715447433729,-41595.052397,0.00012903,2]
[326822398,1715447433740,-544.810252,0.00012903,2]
[326822399,1715447433749,-349.116571,0.00012903,2]
[326822400,1715447433759,-1600.302801,0.00012903,2]
[326822401,1715447433769,-758.006832,0.00012903,2]
[326822402,1715447433778,-9413.379409,0.00012903,2]
[326822403,1715447433787,-655.464987,0.00012903,2]
[326822404,1715447433797,-339.330428,0.00012903,2]
[326822405,1715447433806,-10555.911837,0.00012903,2]
[326822406,1715447433816,-422.421673,0.00012903,2]
[326822407,1715447433825,-1277.683125,0.00012903,2]
[326822408,1715447433835,-9526.92918,0.00012903,2]
[326822409,1715447433844,-1178.07810996,0.00012917,2]
[326822410,1715447433855,-200.281549,0.00012937,2]
[326822411,1715447433864,-151.0,0.00012937,2]
[326822412,1715447433878,-4591.42341058,0.00012937,2]
[326822413,1715447433887,-936.0661241,0.00012943,2]
[326822414,1715447433897,-1398.0,0.00012945,2]
[326822415,1715447433906,-5862.30699132,0.00012948,2]
[326822416,1715447433916,-609863.26251642,0.0001295,3]
[326822417,1715447433925,-151.0,0.0001295,2]
[326822418,1715447433934,-151.0,0.0001295,2]
[326822419,1715447433943,-733.941971,0.0001295,2]
[326822420,1715447433952,-733.941971,0.0001295,2]
[326822421,1715447433962,-599.770951,0.0001295,2]
[326822422,1715447433971,-599.770951,0.0001295,2]
[326822423,1715447433980,-513.206716,0.0001295,2]
[326822424,1715447433989,-513.206716,0.0001295,2]
[326822425,1715447433999,-232.349706,0.0001295,2]
[326822426,1715447434008,-2736.083966,0.0001295,2]
[326822427,1715447434018,-2736.083966,0.0001295,2]
[326822428,1715447434027,-500.0,0.0001297,2]
[326822429,1715447434036,-500.0,0.0001297,2]
[326822430,1715447434046,-901.44116951,0.0001297,2]
[326822431,1715447434055,-1764.75833,0.0001297,2]
[326822432,1715447434065,-1152.4040318,0.00012981,2]
[326822433,1715447434074,-1368.7419395,0.00012982,2]
[326822434,1715447434083,-1585.0798471,0.00012982,2]
[326822435,1715447434166,-1801.4177548,0.00012982,2]
[326822436,1715447434176,-2017.7556624,0.00012982,2]
[326822437,1715447434185,-2229.01511102,0.0001299,2]
[326822438,1715447434194,-151.21,0.0001299,2]
[326822439,1715447434203,-151.21,0.0001299,2]
[326822440,1715447434212,-151.21,0.0001299,2]
[326822441,1715447434221,-151.21,0.0001299,2]
[326822442,1715447434230,-151.21,0.0001299,2]
[326822443,1715447434239,-151.21,0.0001299,2]
[326822444,1715447434248,-151.21,0.0001299,2]
[326822445,1715447434257,-151.21,0.0001299,2]
[326822446,1715447434265,-151.21,0.0001299,2]
[326822447,1715447434274,-151.21,0.0001299,2]
[326822448,1715447434283,-151.21,0.0001299,2]
[326822449,1715447434292,-151.21,0.0001299,2]
[326822450,1715447434301,-151.21,0.0001299,2]
[326822451,1715447434310,-151.21,0.0001299,2]
[326822452,1715447434318,-151.21,0.0001299,2]
[326822453,1715447434328,-151.21,0.0001299,2]
[326822454,1715447434338,-151.21,0.0001299,2]
[326822455,1715447434347,-151.21,0.0001299,2]
[326822456,1715447434356,-151.21,0.0001299,2]
[326822457,1715447434365,-151.21,0.0001299,2]
[326822458,1715447434377,-151.21,0.0001299,2]
[326822459,1715447434385,-151.21,0.0001299,2]
[326822460,1715447434394,-151.21,0.0001299,2]
[326822461,1715447434403,-151.21,0.0001299,2]
[326822462,1715447434411,-151.21,0.0001299,2]
[326822463,1715447434420,-151.21,0.0001299,2]
[326822464,1715447434429,-151.21,0.0001299,2]
[326822465,1715447434438,-151.21,0.0001299,2]
[326822466,1715447434447,-151.21,0.0001299,2]
[326822467,1715447434456,-151.21,0.0001299,2]
[326822468,1715447434465,-151.21,0.0001299,2]
[326822469,1715447434474,-151.21,0.0001299,2]
[326822470,1715447434483,-151.21,0.0001299,2]
[326822471,1715447434493,-151.21,0.0001299,2]
[326822472,1715447434502,-151.21,0.0001299,2]
[326822473,1715447434511,-151.21,0.0001299,2]
[326822474,1715447434520,-151.21,0.0001299,2]
[326822475,1715447434529,-151.21,0.0001299,2]
[326822476,1715447434538,-151.21,0.0001299,2]
[326822477,1715447434547,-151.21,0.0001299,2]
[326822478,1715447434556,-11934.9827887,0.00012991,2]
[326822479,1715447434564,-11654.9399694,0.00012991,2]
[326822480,1715447434573,-11374.89715,0.00012991,2]
[326822481,1715447434582,-11094.8543306,0.00012991,2]
[326822482,1715447434591,-10814.8115112,0.00012991,2]
[326822483,1715447434600,-307.2043765,0.00012991,2]
[326822484,1715447434609,-364.8750807,0.00012991,2]
[326822485,1715447434622,-422.5457849,0.00012991,2]
[326822486,1715447434631,-480.2164891,0.00012991,2]
[326822487,1715447434640,-537.8871933,0.00012991,2]
[326822488,1715447434650,-151.0,0.00012998,2]
[326822489,1715447434661,-176.53372,0.00012998,2]
[326822490,1715447434670,-733.941971,0.00012998,2]
[326822491,1715447434679,-733.941971,0.00012998,2]
[326822492,1715447434688,-599.770951,0.00012998,2]
[326822493,1715447434698,-599.770951,0.00012998,2]
[326822494,1715447434708,-151.0,0.00012998,2]
[326822495,1715447434718,-513.206716,0.00012998,2]
[326822496,1715447434727,-513.206716,0.00012998,2]
[326822497,1715447434736,-2736.083966,0.00012998,2]
[326822498,1715447434745,-2736.083966,0.00012998,2]
[326822499,1715447434754,-404591.1447568,0.00013,2]
[326822500,1715447434768,-625.25,0.00013,2]
[326822501,1715447434792,-13577.58281677,0.00013,2]
[326822502,1715447434837,-3016.71008,0.00013,2]
[326822515,1715447437587,-99658.66335561,0.00013,2]
[326822516,1715447437598,-648.70118642,0.00013,2]
[326822517,1715447437609,-272.32466048,0.00013,2]
[326822518,1715447437621,-493.68166636,0.00013,2]
[326822523,1715447439652,-590.52212235,0.00012899,2]
[326822524,1715447439803,-4538.01939772,0.00012899,2]
[326822525,1715447439813,-334.8306464,0.000129,2]
[326822526,1715447439824,-2060976.60329941,0.00013,2]
[326822527,1715447439834,-4463.61705428,0.00013,2]
[326822528,1715447439843,-2391900.41593119,0.00013,2]
[326822529,1715447439853,-174182.02727513,0.00013,2]
[326822530,1715447439911,-2762.10500002,0.00013,2]
[326822531,1715447440047,-178.02079672,0.00012869,2]
[326822532,1715447440057,-2272.41920328,0.00013,2]
[326822541,1715447443346,-1059.0,0.00012824,2]
[326822542,1715447443355,-81535.68848439,0.00013,2]
[326822546,1715447445602,-613.54464,0.0001274,2]
[326822548,1715448103876,715.6243807,0.000117,2]
[326822549,1715448311107,1250.0,0.00011,2]
[326822550,1715448330498,364.65615017,0.00011702,2]
[326822551,1715448342545,2186.25842322,0.00011702,2]
[326822552,1715448357938,500.0,0.00011682,2]
[326822553,1715448397135,556.57,0.00011652,2]
[326822554,1715448429171,-157.98514558,0.00011706,2]
[326822555,1715448429192,-972.31724676,0.00011707,2]
[326822556,1715448429215,-150.0,0.00011713,2]
[326822557,1715448429235,-300.0,0.00011808,2]
[326822558,1715448429257,-250.0,0.00011809,2]
[326822559,1715448429278,-15751.32073014,0.00011809,2]
[326822560,1715448444365,-314.48207362,0.00011809,2]
[326822565,1715448631894,-7834.19719624,0.00011809,2]
[326822566,1715448631903,-164.98,0.00011854,2]
[326822567,1715448631913,-657.6,0.00011903,2]
[326822568,1715448631922,-443.43,0.00011905,2]
[326822569,1715448631931,-163.26,0.0001196,2]
[326822570,1715448631940,-13848.50417378,0.00011961,2]
[326822571,1715448631949,-151.78,0.00011968,2]
[326822572,1715448631958,-303.0,0.00011968,2]
[326822573,1715448631967,-450.0,0.00012,2]
[326822574,1715448631975,-409.86265904,0.00012004,2]
[326822575,1715448631984,-1460.91947673,0.00012005,2]
[326822576,1715448631992,-436.44,0.00012005,2]
[326822577,1715448632002,-180.61,0.00012005,2]
[326822578,1715448632011,-499.99,0.00012005,2]
[326822579,1715448632020,-341.47,0.00012005,2]
[326822580,1715448632029,-153.36412748,0.00012023,2]
[326822581,1715448632038,-153.8811288,0.00012045,2]
[326822582,1715448632052,-1460.91947673,0.0001207,2]
[326822583,1715448632061,-796.62283087,0.0001208,2]
[326822584,1715448632071,-166.66666666,0.00012087,2]
[326822585,1715448632080,-151.78,0.00012092,2]
[326822586,1715448632090,-289.5171451,0.00012101,2]
[326822587,1715448632099,-514.02093757,0.00012107,2]
[326822588,1715448632108,-514.02093757,0.00012137,2]
[326822589,1715448632117,-675.41068458,0.00012144,2]
[326822590,1715448632128,-153.8811288,0.00012197,2]
[326822591,1715448632138,-154.73101431,0.00012198,2]
[326822592,1715448632147,-664.27681021,0.000122,2]
[326822593,1715448632156,-151.78,0.00012217,2]
[326822594,1715448632166,-153.15918586,0.00012249,2]
[326822595,1715448632175,-170.26385332,0.00012339,2]
[326822596,1715448632184,-151.78,0.00012342,2]
[326822597,1715448632193,-154.73101431,0.00012344,2]
[326822598,1715448632201,-155.6637896,0.00012354,2]
[326822599,1715448632210,-1460.91947673,0.00012385,2]
[326822600,1715448632219,-222.58140383,0.00012451,2]
[326822601,1715448632228,-5689.84975491,0.00012462,2]
[326822602,1715448632237,-5000.0,0.00012462,2]
[326822603,1715448632246,-153.36412748,0.00012463,2]
[326822604,1715448632255,-151.78,0.00012466,2]
[326822605,1715448632264,-400.31581967,0.00012468,2]
[326822606,1715448632273,-154.64090301,0.0001247,2]
[326822607,1715448632282,-289.5171451,0.00012473,2]
[326822608,1715448632291,-514.02093757,0.0001248,2]
[326822609,1715448632300,-222.58140383,0.00012484,2]
[326822610,1715448632309,-155.20612577,0.00012497,2]
[326822611,1715448632318,-664.27681021,0.00012508,2]
[326822612,1715448632327,-796.62283087,0.00012537,2]
[326822613,1715448632337,-514.02093757,0.00012539,2]
[326822614,1715448632346,-155.20612577,0.00012547,2]
[326822615,1715448632355,-218.13042014,0.00012582,2]
[326822616,1715448632364,-796.62283087,0.00012582,2]
[326822617,1715448632374,-2009.568396,0.00012588,2]
[326822618,1715448632384,-3014.352594,0.00012588,2]
[326822619,1715448632393,-196.920011,0.00012588,2]
[326822620,1715448632402,-248.28043,0.00012588,2]
[326822621,1715448632412,-189.756362,0.00012588,2]
[326822622,1715448632421,-10426.09279562,0.00012588,2]
[326822623,1715448632474,-287.87646049,0.00012588,2]
[326822639,1715448638312,-393.39810856,0.00012588,2]
[326822670,1715448640033,-351.1236634,0.00012588,2]
[326822672,1715448640046,-1048.0,0.00012588,2]
[326822681,1715448640158,-747.84243167,0.00012588,2]
[326822683,1715448640170,-668.16681472,0.00012588,2]
[326822695,1715448640306,-13705.15213154,0.00012588,2]
[326822698,1715448640317,-2262.791764,0.00012588,2]
[326822699,1715448640327,-754.263921,0.00012588,2]
[326822700,1715448640338,-154.73101431,0.00012591,2]
[326822701,1715448640348,-151.78,0.00012591,2]